Cogmind - Beta 13 *** ADVENTURER MODE // 2024.04.05 @ 16:17:46 Player: Koritus Result: Self-destructed Performance ------------- Evolutions (3) 1500 Regions Visited (5) 1000 Robots Destroyed (98) 490 Value Destroyed (3135) 3135 Prototype IDs (1) 20 Alien Tech Used (0) 0 Bonus (238) 238 TOTAL SCORE: 6383 Bonus ------- High Alert Combat Kills 238 Cogmind --------- Core Integrity 398/700 Matter 231/300 Energy 350/350 System Corruption 3% Temperature Cool (0) Movement Rolling (95) Ox1 Location -7/Storage Parts ------- > --- POWER (2) -------- Light Nuclear Core Improved Deuterium Engine > --- PROPULSION (5) --- Carbon-fiber Leg Wheel Wheel Wheel VTOL Module > --- UTILITY (3) ------ Medium Storage Unit > --- WEAPON (3) ------- Autogun Flak Gun Great Axe > --- INVENTORY (10) --- Improved Deuterium Engine Improved Heat Sink Improved Light Armor Plating System Restoration Module Peak State ------------ > --- POWER ------------ Improved Deuterium Engine Improved Deuterium Engine > --- PROPULSION ------- Airjet Airjet Aerolev Unit Aerolev Unit Aerolev Unit > --- UTILITY ---------- Improved Heat Sink Medium Storage Unit Hardened Medium Armor Plating > --- WEAPON ----------- Gatling Laser Assault Cannon Great Axe > --- INVENTORY -------- Improved Deuterium Engine Aerolev Unit Hardened Medium Armor Plating Improved Light Armor Plating System Restoration Module Great Axe [Rating: 46] Favorites ----------- Power Light Nuclear Core Engine Light Ion Engine Power Core Light Nuclear Core Propulsion VSS Leg Treads Light Treads Leg VSS Leg Wheel Wheel Hover Unit Airjet Flight Unit VTOL Module Utility Medium Storage Unit Device Heat Sink Storage Medium Storage Unit Protection Hardened Medium Armor Plating Weapon Assault Rifle Energy Gun Beam Rifle Ballistic Gun Assault Rifle Ballistic Cannon Improved Light Cannon Launcher Grenade Launcher Impact Weapon Heavy Mace Slashing Weapon Great Axe Build | -11 -10 -9 -8 -7 -7 ------- Run | Yrd Mat Mat Mat Fac Sto Slots Evolved 6 | . . 2 2 2 . Power 1 | . . . 1 . . Propulsion 3 | . . 2 . 1 . Utility 1 | . . . . 1 . Weapon 1 | . . . 1 . . Parts Attached 97 | 7 9 20 13 18 30 Power 18 | 1 1 1 7 3 5 Engine 10 | 1 1 1 3 1 3 Core 8 | . . . 4 2 2 Reactor . | . . . . . . Propulsion 36 | 2 3 10 1 7 13 Treads 1 | . . . . . 1 Leg 13 | 2 3 6 1 . 1 Wheel 4 | . . . . . 4 Hover 15 | . . 4 . 7 4 Flight 3 | . . . . . 3 Utility 16 | 1 1 6 1 2 5 Device 7 | 1 1 . . 1 4 Storage 1 | . . 1 . . . Processor . | . . . . . . Hackware . | . . . . . . Protection 8 | . . 5 1 1 1 Artifact . | . . . . . . Weapon 27 | 3 4 3 4 6 7 Energy Gun 6 | . 2 1 . 2 1 Energy Cannon . | . . . . . . Ballistic Gun 11 | 3 1 2 1 2 2 Ballistic Cannon 5 | . . . 2 1 2 Launcher 1 | . 1 . . . . Special Weapon . | . . . . . . Impact Weapon 1 | . . . 1 . . Slashing Weapon 3 | . . . . 1 2 Piercing Weapon . | . . . . . . Special Melee Weapon . | . . . . . . Unidentified Prototypes 1 | . . . . . 1 Parts Lost 17 | . 1 . 1 2 13 Power 4 | . 1 . 1 . 2 Propulsion 10 | . . . . 2 8 Utility 2 | . . . . . 2 Weapon 1 | . . . . . 1 Highest Loss Streak 4 | . 1 . 1 1 4 To Critical Strikes . | . . . . . . Average Slot Usage (%) 87 | . 82 84 97 94 83 Engine 8 | . 12 11 7 . 7 Core 4 | . . . 8 15 4 Leg 19 | . 28 30 36 . . Hover 10 | . . . . 35 22 Device 4 | . 14 3 . 3 6 Storage 6 | . . 5 9 7 7 Protection 7 | . . 10 9 7 5 Energy Gun 5 | . 1 11 1 1 5 Ballistic Gun 11 | . 22 10 15 12 4 Ballistic Cannon 2 | . . . 9 . 3 Slashing Weapon 2 | . . . . 4 7 Naked Turns . | . . . . . . Heaviest Build 54 | 7 9 29 41 41 54 Greatest Support 48 | 20 20 40 48 46 40 Greatest Overweight (x) 8 | . . 2 1 1 8 Average Overweight (x) . | . . . . . 1 Largest Inventory Capacity 10 | 5 5 10 10 10 10 Average Capacity 8 | 5 5 7 10 10 10 Most Carried 10 | 3 3 10 10 10 10 Average Carried 6 | . 2 6 9 8 5 Final Capacity 10 | 5 5 10 10 10 10 Final Carried 10 | 3 3 10 10 10 4 Class Distribution -------------------- 42% | Mutant 40% | Scavenger-Mutant 11% | Tank 5% | Scavenger-Tank Dominant Class ---------------- Mutant | -10/Materials Scavenger-Mutant | -9/Materials Tank | -8/Materials Mutant | -7/Factory Scavenger-Mutant | -7/Storage Resources | -11 -10 -9 -8 -7 -7 ----------- Run | Yrd Mat Mat Mat Fac Sto Matter Collected 2433 | 300 190 378 592 278 695 Remotely . | . . . . . . Salvage Created 3404 | 47 239 742 677 278 1421 Parts 191 | 4 25 46 38 13 65 Haulers Intercepted 3 | . . . 2 . 1 Recyclers Shooed 5 | . 2 1 1 . 1 Parts Field Recycled . | . . . . . . Retrieved Matter . | . . . . . . Parts Self-Destructed . | . . . . . . Prevented . | . . . . . . Kills | -11 -10 -9 -8 -7 -7 ------- Run | Yrd Mat Mat Mat Fac Sto Combat Hostiles Destroyed 73 | 1 8 18 12 7 27 Melee 13 | . . . . 2 11 Guns 54 | 1 7 18 8 5 15 Cannons 4 | . . . 4 . . AOE 1 | . 1 . . . . Classes Destroyed 12 | 1 3 1 4 . 3 Worker 7 | . . . 2 . 5 Builder 3 | . 1 . 1 . 1 Hauler 3 | . . . 2 . 1 Recycler 1 | . . . . . 1 Watcher 11 | . 1 4 4 . 2 Swarmer 18 | . 3 4 1 4 6 Grunt 33 | 1 5 11 8 . 8 Brawler 1 | . . . . . 1 Duelist 2 | . . . 1 . 1 Sentry 17 | . . 3 1 3 10 Hunter 1 | . . . 1 . . Programmer 1 | . . . . . 1 Best Kill Streak 13 | 1 5 5 5 4 13 Combat Bots Only 5 | 1 3 5 3 4 5 Max Kills in Single Turn 3 | 1 3 1 2 1 2 Gunslinging . | . . . . . . Exploded 1 | . 1 . . . . Melee 1 | . . . . 1 1 Uniques/NPCs Destroyed . | . . . . . . Combat | -11 -10 -9 -8 -7 -7 -------- Run | Yrd Mat Mat Mat Fac Sto Hostile Shots Fired 729 | 6 35 69 66 99 454 Missed 246 | 1 10 29 16 38 152 Damage Taken 3876 | 42 248 358 647 590 1991 Core 466 | 17 18 80 49 64 238 Absorbed by Shields 98 | . . . . . 98 Ignored by Resistances 1229 | 14 75 106 187 179 668 Core Remaining (%) 87 | 93 86 80 91 . . Volleys Fired 210 | 5 23 49 54 12 67 Largest 3 | 2 2 2 3 2 2 Hottest 124 | 40 50 85 118 86 124 Shots Fired 411 | 10 44 98 137 24 98 Gun 331 | 10 42 98 84 24 73 Cannon 78 | . . . 53 . 25 Launcher 2 | . 2 . . . . Special . | . . . . . . Kinetic 322 | 10 42 49 128 20 73 Thermal 87 | . . 49 9 4 25 Explosive 2 | . 2 . . . . Electromagnetic . | . . . . . . Robot Hit Streak 26 | 6 11 13 14 16 26 Robot Miss Streak 3 | 1 3 2 3 2 3 Penetration Max 1 | . . . 1 . . Secondary Targets 4 | . 1 3 . . . Max Gunslinging Chain 1 | . 1 1 . . . Shots Hit Robots 338 | 8 32 70 86 24 118 Core Hits 222 | 2 19 33 35 12 121 Critical Kills . | . . . . . . Critical Parts Destroyed . | . . . . . . Critical Strikes 11 | . . 4 2 1 4 Burn 6 | . . 4 2 . . Blast 1 | . . . . . 1 Sever 4 | . . . . 1 3 Melee Attacks 41 | . . . . 8 33 Impact 5 | . . . . 5 . Slashing 36 | . . . . 3 33 Piercing . | . . . . . . Sneak Attacks . | . . . . . . Combat Hostiles . | . . . . . . Follow-up Attacks . | . . . . . . Damage Inflicted 7187 | 96 636 951 1679 495 3330 Guns 4447 | 96 451 951 931 316 1702 Cannons 1205 | . . . 746 . 459 Explosions 185 | . 185 . . . . Melee 1348 | . . . . 179 1169 Ramming 2 | . . . 2 . . Kinetic 4346 | 96 451 429 1635 245 1490 Thermal 1306 | . . 522 42 71 671 Explosive 185 | . 185 . . . . Electromagnetic . | . . . . . . Impact 55 | . . . . 55 . Slashing 1293 | . . . . 124 1169 Piercing . | . . . . . . Highest Corruption 3 | . . . . . 3 Average Corruption 2 | . . . . . 2 Corruption Purged . | . . . . . . Corruption Blocked . | . . . . . . Effects 8 | . . . . . 8 Matter Fused 1 | . . . . . 1 Heat Flow Errors 2 | . . . . . 2 Energy Discharges 1 | . . . . . 1 Data Loss (minor) 2 | . . . . . 2 Data Loss (major) 1 | . . . . . 1 Weapon Failures 1 | . . . . . 1 Overload Shots . | . . . . . . Overflow Damage 10 | . 1 . 1 . 8 Projectiles 1 | . . . 1 . . Explosions 1 | . 1 . . . . Melee 8 | . . . . . 8 Knockbacks 10 | . . . 9 . 1 Impact . | . . . . . . Kinetic 10 | . . . 9 . 1 Secondary . | . . . . . . Self-Inflicted Damage . | . . . . . . Shots . | . . . . . . Rammed . | . . . . . . Targets Rammed 1 | . . . 1 . . Kicked 1 | . . . 1 . . Crushed . | . . . . . . Highest Temperature 506 | . 5 201 440 162 506 Average Temperature 151 | . 5 70 207 60 156 Received Heat Transfer 1515 | 30 195 204 270 54 762 Effects 29 | . . . 18 . 11 Shutdowns 8 | . . . 6 . 2 Energy Bleed 2 | . . . 2 . . Interference 9 | . . . 6 . 3 Matter Decay 4 | . . . 2 . 2 Short Circuit 4 | . . . 2 . 2 Damage (minor) 2 | . . . . . 2 Siege Activations . | . . . . . . Robots Corrupted . | . . . . . . Combat Hostiles . | . . . . . . Parts Fried . | . . . . . . Impact Corruptions . | . . . . . . Robots Melted 1 | . . . . . 1 Combat Hostiles 1 | . . . . . 1 Parts Melted 7 | . . 3 . 1 3 Heat Transferred 3560 | . . 1628 259 148 1525 Parts Sabotaged . | . . . . . . Parts Stolen . | . . . . . . Parts Stripped . | . . . . . . Power Chain Reactions . | . . . . . . Alert | -11 -10 -9 -8 -7 -7 ------- Run | Yrd Mat Mat Mat Fac Sto Peak Influence 608 | 20 256 552 600 417 608 Initial 198 | . 11 91 198 182 162 Average 300 | 2 141 309 434 324 283 Maximum Alert Level 2 | . 1 2 2 2 2 Low Security (%) 31 | 100 84 28 2 17 29 Level 1 37 | . 15 41 18 64 51 Level 2 31 | . . 29 79 17 19 Level 3 . | . . . . . . Level 4 . | . . . . . . Level 5 . | . . . . . . High Security . | . . . . . . Max Security . | . . . . . . Squads Dispatched 14 | . 1 4 2 . 7 Investigation 5 | . 1 3 . . 1 Extermination 1 | . . . . . 1 Reinforcement 4 | . . 1 2 . 1 Assault . | . . . . . . Garrison 4 | . . . . . 4 Intercept . | . . . . . . Searches Triggered . | . . . . . . Construction Impeded 1 | . . . 1 . . Haulers Reinforced . | . . . . . . Active Scanning Responses . | . . . . . . Cargo Convoy Interrupts . | . . . . . . Stealth | -11 -10 -9 -8 -7 -7 --------- Run | Yrd Mat Mat Mat Fac Sto Distress Signals 7 | . 1 1 2 . 3 Communications Jammed . | . . . . . . Distress Signals . | . . . . . . Times Spotted 102 | 1 9 29 21 9 33 Peak Tracking Total 6 | 1 3 6 6 4 5 Tactical Retreats 4 | . . 2 1 1 . Traps | -11 -10 -9 -8 -7 -7 ------- Run | Yrd Mat Mat Mat Fac Sto Traps Triggered 5 | . 1 . . 1 3 Indirectly . | . . . . . . Trap Hack Attempts . | . . . . . . Triggered . | . . . . . . Disarmed . | . . . . . . Reprogrammed . | . . . . . . Reused . | . . . . . . Traps Extracted . | . . . . . . Installed . | . . . . . . Triggered . | . . . . . . Machines | -11 -10 -9 -8 -7 -7 ---------- Run | Yrd Mat Mat Mat Fac Sto Machines Disabled 1 | . . . . . 1 Max in Single Turn 1 | . . . . . 1 Machines Repaired . | . . . . . . Machines Dismantled . | . . . . . . Machines Sabotaged . | . . . . . . Overloaded Fab Kills . | . . . . . . Hacking | -11 -10 -9 -8 -7 -7 --------- Run | Yrd Mat Mat Mat Fac Sto Machines Accessed 13 | . 2 5 4 . 2 Terminals 12 | . 2 5 4 . 1 Fabricators . | . . . . . . Repair Stations . | . . . . . . Recycling Units . | . . . . . . Scanalyzers . | . . . . . . Garrison Access 1 | . . . . . 1 Total Hacks 39 | . 6 15 13 . 5 Successful 21 | . 5 6 7 . 3 Failed 18 | . 1 9 6 . 2 Catastrophic 4 | . . 1 2 . 1 Database Lockouts . | . . . . . . Manual . | . . . . . . Terminals 37 | . 6 15 13 . 3 Fabricators . | . . . . . . Repair Stations . | . . . . . . Recycling Units . | . . . . . . Scanalyzers . | . . . . . . Garrison Access 2 | . . . . . 2 Terminal Hacks 21 | . 5 6 7 . 3 Record 9 | . 2 2 4 . 1 Robot Analysis 1 | . . . 1 . . Terminal Index 1 | . . 1 . . . Alert Level 1 | . . . 1 . . Unreport Threat 1 | . . . . . 1 Locate Traps 1 | . 1 . . . . Dispatch Records 1 | . . 1 . . . Maintenance Status 1 | . . 1 . . . Security Status 1 | . 1 . . . . Registered Prototypes 1 | . . 1 . . . Zone Layout 3 | . 1 . 1 . 1 Fabricator Hacks . | . . . . . . Repair Station Hacks . | . . . . . . Recycling Unit Hacks . | . . . . . . Scanalyzer . | . . . . . . Garrison Access Hacks . | . . . . . . Unauthorized Hacks . | . . . . . . Terminals . | . . . . . . Fabricators . | . . . . . . Repair Stations . | . . . . . . Recycling Units . | . . . . . . Scanalyzers . | . . . . . . Garrison Access . | . . . . . . Data Cores Recovered . | . . . . . . Used . | . . . . . . Hacking Detections 12 | . 1 5 4 . 2 Full Trace Events 6 | . 1 4 . . 1 Feedback Events . | . . . . . . Feedback Blocked . | . . . . . . Robot Schematics Acquired . | . . . . . . Robots Built . | . . . . . . Authchips . | . . . . . . Time . | . . . . . . Total Robot Build Rating . | . . . . . . Part Schematics Acquired . | . . . . . . Parts Built . | . . . . . . Authchips . | . . . . . . Time . | . . . . . . Total Part Build Rating . | . . . . . . Parts Repaired . | . . . . . . Time . | . . . . . . Parts Recycled . | . . . . . . Recycled Matter . | . . . . . . Retrieved Matter . | . . . . . . Retrieved Components . | . . . . . . Parts Scanalyzed . | . . . . . . Part Schematics Acquired . | . . . . . . Parts Damaged . | . . . . . . Bothacking | -11 -10 -9 -8 -7 -7 ------------ Run | Yrd Mat Mat Mat Fac Sto Used RIF Installer . | . . . . . . Robots Hacked . | . . . . . . Non-combat . | . . . . . . Combat . | . . . . . . Robot Hacks Applied . | . . . . . . Relay Couplers Released . | . . . . . . Fabnet Peak Effective % . | . . . . . . Robots Rewired . | . . . . . . Allies Hacked . | . . . . . . Hacks Repelled . | . . . . . . Allies | -11 -10 -9 -8 -7 -7 -------- Run | Yrd Mat Mat Mat Fac Sto Total Allies . | . . . . . . Largest Group . | . . . . . . Highest-Rated Group . | . . . . . . Highest-Rated Ally . | . . . . . . Total Orders . | . . . . . . Ally Attacks . | . . . . . . Total Damage . | . . . . . . Kills . | . . . . . . Allies Corrupted . | . . . . . . Allies Melted . | . . . . . . Intel | -11 -10 -9 -8 -7 -7 ------- Run | Yrd Mat Mat Mat Fac Sto Robot Analysis Total 1 | . . . 1 . . Derelict Logs Recovered . | . . . . . . Drone Launches . | . . . . . . Drone Recoveries . | . . . . . . Exploration | -11 -10 -9 -8 -7 -7 ------------- Run | Yrd Mat Mat Mat Fac Sto Turns Passed 2811 | 96 334 742 587 331 721 Spaces Moved 1753 | 66 205 440 321 434 287 Core 14 | 14 . . . . . Treads 12 | . . . . . 12 Legs 1029 | 52 205 433 321 17 1 Wheels 13 | . . . . . 13 Hover 680 | . . 7 . 417 256 Flight 5 | . . . . . 5 Fastest Speed 40 | 50 120 52 90 44 40 Average Speed 99 | 105 120 119 114 46 116 Slowest Speed 700 | 120 120 210 180 104 700 Overloaded Moves . | . . . . . . Propulsion Burnouts . | . . . . . . Robots Hopped . | . . . . . . Cave-ins Triggered . | . . . . . . Exploration Rate (%) 26 | 5 33 35 28 11 44 Regions Visited 5 Branch Regions 1 Pre-discovered Areas . | . . . . . . Known Exits Taken . | . . . . . . Unknown Exits Taken 5 | 1 1 1 1 1 . Scrap Searched . | . . . . . . Spaces Dug . | . . . . . . Terrain Destroyed 23 | . 19 . 1 . 3 Melee . | . . . . . . Projectile 4 | . . . 1 . 3 AOE 19 | . 19 . . . . Terrain Rammed . | . . . . . . Walls Destroyed . | . . . . . . Machines Disabled . | . . . . . . Actions | -11 -10 -9 -8 -7 -7 --------- Run | Yrd Mat Mat Mat Fac Sto Total 2364 | 79 249 562 432 529 513 Wait 156 | . 4 14 27 33 78 Move 1748 | 65 204 439 320 433 287 Hop . | . . . . . . Pick Up 31 | 1 1 13 6 10 . Fast Attach 70 | 6 7 18 9 9 21 Attach 23 | . 2 . 4 8 9 Detach 10 | 1 2 4 . . 3 Swap 4 | 1 . 2 . 1 . Drop 71 | . 6 23 11 15 16 Fire 210 | 5 23 49 54 12 67 Melee 40 | . . . . 8 32 Ram . | . . . . . . Kick 1 | . . . 1 . . Crush . | . . . . . . Escape Stasis . | . . . . . . Rewire . | . . . . . . Trap . | . . . . . . Miscellaneous . | . . . . . . Route ------- -11/Scrapyard -10/Materials -9/Materials (discovered 3 exits: *Mat / [*Min x2]) -8/Materials -7/Factory (discovered 2 exits: *Sto x2) -7/Storage History --------- Turn | Location | Event 2 | -11/Scrapyard | Met Revision 17 64 | -11/Scrapyard | Discovered new exit (range 8) 97 | -11/Scrapyard | Entered Materials 308 | -10/Materials | Build established: Mutant 392 | -10/Materials | Discovered new exit (range 9) 431 | -10/Materials | Entered another Materials area 431 | -9/Materials | Evolved 2 slots: Propulsion x2 492 | -9/Materials | Discovered new exit (range 16) 685 | -9/Materials | Build established: Scavenger-Mutant 834 | -9/Materials | Discovered new exit (range 15) 1054 | -9/Materials | Discovered new exit (range 16) 1173 | -9/Materials | Entered another Materials area 1173 | -8/Materials | Evolved 2 slots: Power x1, Weapon x1 1708 | -8/Materials | Discovered new exit (range 15) 1760 | -8/Materials | Entered Factory 1760 | -7/Factory | Evolved 2 slots: Propulsion x1, Utility x1 1885 | -7/Factory | Discovered new exit (range 4) 2056 | -7/Factory | Discovered new exit (range 7) 2091 | -7/Factory | Entered Storage 2418 | -7/Storage | Garrison activated, responded to threat 2524 | -7/Storage | Lost 4 parts (1p3n) 2718 | -7/Storage | Garrison activated, responded to threat 2751 | -7/Storage | Lost 3 parts (1n1u1w) 2812 | -7/Storage | Self-destructed Last Messages --------------- Acquired Lgt. Nuclear Core. Acquired VTOL Module. [Achievement: Universal Adapter] K-01 Serf collects debris. Acquired Carbon-fiber Leg. K-01 Serf collects debris. Acquired Wheel. K-01 Serf collects debris. Dropped Lgt. Treads. Acquired VTOL Module. K-01 Serf collects debris. K-01 Serf destroyed. G-47 Trooper destroyed. Critical hit (Burn: +37). G-47 Trooper destroyed. Dropped VTOL Module. Acquired Wheel. Acquired 47 matter. W-25 Informer destroyed. R-06 Scavenger destroyed. Map ----- +----------------------------------------------------+ | | | | | | | | | | | | | | | ?????????????????????????????????????????????????? | | ?????????????????????????????????????????????????? | | ?????????????????????????????????????????????????? | | ?????????????????????????????????????????????????? | | ?????????????????????????????????????????????????? | | ##########???????????????????????????????????????? | | # #???????????????????????????????????????? | | # #???????????????????????????????????????? | | # #???????????????????????????????????????? | | # #???????????????????????????????????????? | | # #???????????????????????????????????????? | | # #???????????????????????????????????????? | | # #???????????????????????????????????????? | | # #???????#???????????????????????????????? | | # #?????Y"#???????????????????????????????? | | #+###+########" "###############+#######?????????? | | # a % o ????????? | | +% !!! !%% ????????? | | #! !%= !%* =@* ????????? | | ### #######+#############/########???????????????? | | #?# #?????? #????????# [ #??????????????????? | | #?# #??????? ]?????#### %"""#??????????????????? | | #?# #????????"[[????#" [= """#??????????????????? | | ### #?????????###???#"""% """#??????????????????? | | #???????????????#G % #??????????????????? | | #???????????????#""" %"""#??????????????????? | | % #???????????????#" =[=%"""#??????????????????? | | +##%#???????????????####!!%"""#??????????????????? | | %=# #??????????????????# *%= #??????????????????? | | #%###???###??????????# !"""#??????????????????? | | # ##### #######????# """#??????????????????? | | + # % % #????# """#??????????????????? | | # # % """" #????# #??????????????????? | | # # """"" #????###+####??????????????????? | | # %+ """"" #??????# #?????????????????????? | | # # % %! %#??????# #?????????????????????? | | ### # ! ######## ####### #??????????? | | ??# # ! %!*+ ] = [[ ! #??????????? | | ??# ########+##############% + "???????? | | ??# #?????????????????????#%#### # "???????? | | ??# #?????????????????????# #????? ##??????????? | | ??# #?????????????????????#+#??????????????????? | | ??# ??????????????????????????????????????????? | +----------------------------------------------------+ Best States ------------- Heat Dissipation 48 Energy Generation 27 Energy Capacity 480 Matter Stores 300 Matter Capacity 300 Sight Range 16 Terrain Scan Density 10 Armor Coverage 225 Resistance: KI 20 Resistance: TH 20 Resistance: EX 20 Resistance: EM 20 Resistance: I 20 Resistance: S 20 Resistance: P 20 Evasion (%) 56 Recoil Reduction 1 Offensive Hacking 10 Item Schematics ----------------- None Robot Schematics ------------------ None Fabricated ------------ Nothing Alien Tech Used ----------------- None Achievements -------------- Everything Is Under Control Hey, That's Mine! It's Just You Loot Pinata Troublemaker Universal Adapter Challenges ------------ None Game ------ Seed LobotomyFireField Manual? 0 Play Time 00:53:51 Cumulative 4.4 hours Start 2024.04.05 @ 15:25:16 End 2024.04.05 @ 16:17:46 Sessions 1 Manual Loads 0 Difficulty Adventurer Special Mode None Game No. 3 Rogue 0 Adventurer 3 Explorer 0 Win Type - Total 0 Types 0/0/0/0/0/0/0/0/0 Lore% 10 Gallery% 8 Achievement% 8 Wizard Run 0 Options --------- Layout 1 ASCII 0 Keyboard 0 Movement Mouse Keybinds 0 Fullscreen 1 Font 24/Smallcaps Map View 50x35 Zoom Use 0% Tactical HUD 0 Map Filters NONE Filters NONE Steam 1 RUN: d5369a40-8f69-462c-889b-f8e3ff1709e2